{"text_format":"1","workbook":"xlsx","n_sheets":1,"sheets":["INPUT"],"not_rendered":{"charts":0,"images":0,"macros":1,"external_links":0,"defined_names":1,"comments":0,"pivot_tables":0},"unopened":[],"bounds":{"document_bytes":16777216,"sheet_cells":100000,"rows_first":2000,"rows_last":500,"rows_between":2000,"halvings":0,"cell_chars":16384,"cell_head_chars":4096},"cells_cut":0,"cells_raw":0,"read":"whole","date_system":"1900"}

{"sheet":"INPUT","index":0,"n_rows":500,"n_cols":18,"rows_kept":500,"cut":false,"hidden":false,"merged":[[0,0,0,7],[2,0,2,7]]}
["Area coordinates generator\nLatitude/Longitude (Degrees, minutes, seconds)"]
[]
["Enter relevant coordinates specific to the permit area being described in this worksheet\nExample: (LonDegress: 139, LonMinutes: 29, LonSeconds: 30.09, LatDegrees: 20, LatMinutes: 43, LatSeconds: 28.83)"]
[]
[]
[null,"LonDegrees","LonMinutes","LonSeconds","LatDegrees","LatMinutes","LatSeconds"]
[null,139,29,30.09,20,43,28.83,null,null,{"$f":"ABS(B7)","v":139},{"$f":"ABS(C7/60)","v":0.48333333333333334},{"$f":"ABS(D7/3600)","v":8.3583333333333339E-3},{"$f":"IF(AND(J7=0,K7=0,L7=0),\"\",SUM(J7:L7))","v":139.49169166666664},null,{"$f":"ABS(E7)","v":20},{"$f":"ABS(F7/60)","v":0.71666666666666667},{"$f":"ABS(G7/3600)","v":8.0083333333333326E-3},{"$f":"IF(AND(O7=0,P7=0,Q7=0),\"\",SUM(O7:Q7)*-1)","v":-20.724674999999998}]
[null,144,14,43.15,23,26,23.42,null,null,144,0.23333333333333334,1.1986111111111111E-2,144.24531944444442,null,23,0.43333333333333335,6.5055555555555561E-3,{"$f":"IF(AND(O8=0,P8=0,Q8=0),\"\",SUM(O8:Q8)*-1)","v":-23.43983888888889}]
[null,150,31,8.65,23,22,44.44,null,null,150,0.51666666666666672,2.402777777777778E-3,150.51906944444445,null,23,0.36666666666666664,1.2344444444444444E-2,-23.379011111111112]
[null,138,0,35.21,27,28,28.81,null,null,138,0,9.7805555555555562E-3,138.00978055555555,null,27,0.46666666666666667,8.0027777777777771E-3,-27.474669444444444]
[null,null,null,null,null,null,null,null,null,0,0,0,"",null,0,0,0,""]
[null,null,null,null,null,null,null,null,null,0,0,0,{"$f":"IF(AND(J12=0,K12=0,L12=0),\"\",SUM(J12:L12))","v":""},null,0,0,0,""]
[null,null,null,null,null,null,null,null,null,0,0,0,"",null,0,0,0,""]
[null,null,null,null,null,null,null,null,null,0,0,0,"",null,0,0,0,""]
[null,null,null,null,null,null,null,null,null,0,0,0,"",null,0,0,0,""]
[null,null,null,null,null,null,null,null,null,0,0,0,"",null,0,0,0,""]
[null,null,null,null,null,null,null,null,null,0,0,0,"",null,0,0,0,""]
[null,null,null,null,null,null,null,null,null,0,0,0,"",null,0,0,0,""]
[null,null,null,null,null,null,null,null,null,0,0,0,"",null,0,0,0,""]
[null,null,null,null,null,null,null,null,null,0,0,0,{"$f":"IF(AND(J20=0,K20=0,L20=0),\"\",SUM(J20:L20))","v":""},null,0,0,0,{"$f":"IF(AND(O20=0,P20=0,Q20=0),\"\",SUM(O20:Q20)*-1)","v":""}]
[null,null,null,null,null,null,null,null,null,0,0,0,"",null,0,0,0,""]
[null,null,null,null,null,null,null,null,null,0,0,0,"",null,0,0,0,""]
[null,null,null,null,null,null,null,null,null,0,0,0,"",null,0,0,0,""]
[null,null,null,null,null,null,null,null,null,0,0,0,"",null,0,0,0,""]
[null,null,null,null,null,null,null,null,null,0,0,0,"",null,0,0,0,""]
[null,null,null,null,null,null,null,null,null,0,0,0,"",null,0,0,0,""]
[null,null,null,null,null,null,null,null,null,0,0,0,"",null,0,0,0,""]
[null,null,null,null,null,null,null,null,null,0,0,0,"",null,0,0,0,""]
[null,null,null,null,null,null,null,null,null,0,0,0,"",null,0,0,0,""]
[null,null,null,null,null,null,null,null,null,0,0,0,"",null,0,0,0,""]
[null,null,null,null,null,null,null,null,null,0,0,0,"",null,0,0,0,""]
[null,null,null,null,null,null,null,null,null,0,0,0,"",null,0,0,0,""]
[null,null,null,null,null,null,null,null,null,0,0,0,"",null,0,0,0,""]
[null,null,null,null,null,null,null,null,null,0,0,0,"",null,0,0,0,""]
[null,null,null,null,null,null,null,null,null,0,0,0,"",null,0,0,0,""]
[null,null,null,null,null,null,null,null,null,0,0,0,"",null,0,0,0,""]
[null,null,null,null,null,null,null,null,null,0,0,0,"",null,0,0,0,""]
[null,null,null,null,null,null,null,null,null,0,0,0,"",null,0,0,0,""]
[null,null,null,null,null,null,null,null,null,0,0,0,"",null,0,0,0,""]
[null,null,null,null,null,null,null,null,null,0,0,0,"",null,0,0,0,""]
[null,null,null,null,null,null,null,null,null,0,0,0,"",null,0,0,0,""]
[null,null,null,null,null,null,null,null,null,0,0,0,"",null,0,0,0,""]
[null,null,null,null,null,null,null,null,null,0,0,0,"",null,0,0,0,""]
[null,null,null,null,null,null,null,null,null,0,0,0,"",null,0,0,0,""]
[null,null,null,null,null,null,null,null,null,0,0,0,"",null,0,0,0,""]
[null,null,null,null,null,null,null,null,null,0,0,0,"",null,0,0,0,""]
[null,null,null,null,null,null,null,null,null,0,0,0,"",null,0,0,0,""]
[null,null,null,null,null,null,null,null,null,0,0,0,"",null,0,0,0,""]
[null,null,null,null,null,null,null,null,null,0,0,0,"",null,0,0,0,""]
[null,null,null,null,null,null,null,null,null,0,0,0,"",null,0,0,0,""]
[null,null,null,null,null,null,null,null,null,0,0,0,"",null,0,0,0,""]
[null,null,null,null,null,null,null,null,null,0,0,0,"",null,0,0,0,""]
[null,null,null,null,null,null,null,null,null,0,0,0,"",null,0,0,0,""]
[null,null,null,null,null,null,null,null,null,0,0,0,"",null,0,0,0,""]
[null,null,null,null,null,null,null,null,null,0,0,0,"",null,0,0,0,""]
[null,null,null,null,null,null,null,null,null,0,0,0,"",null,0,0,0,""]
[null,null,null,null,null,null,null,null,null,0,0,0,"",null,0,0,0,""]
[null,null,null,null,null,null,null,null,null,0,0,0,"",null,0,0,0,""]
[null,null,null,null,null,null,null,null,null,0,0,0,"",null,0,0,0,""]
[null,null,null,null,null,null,null,null,null,0,0,0,"",null,0,0,0,""]
[null,null,null,null,null,null,null,null,null,0,0,0,"",null,0,0,0,""]
[null,null,null,null,null,null,null,null,null,0,0,0,"",null,0,0,0,""]
[null,null,null,null,null,null,null,null,null,0,0,0,"",null,0,0,0,""]
[null,null,null,null,null,null,null,null,null,0,0,0,"",null,0,0,0,""]
[null,null,null,null,null,null,null,null,null,0,0,0,{"$f":"IF(AND(J65=0,K65=0,L65=0),\"\",SUM(J65:L65))","v":""},null,0,0,0,{"$f":"IF(AND(O65=0,P65=0,Q65=0),\"\",SUM(O65:Q65)*-1)","v":""}]
[null,null,null,null,null,null,null,null,null,0,0,0,"",null,0,0,0,""]
[null,null,null,null,null,null,null,null,null,0,0,0,"",null,0,0,0,""]
[null,null,null,null,null,null,null,null,null,0,0,0,"",null,0,0,0,""]
[null,null,null,null,null,null,null,null,null,0,0,0,"",null,0,0,0,""]
[null,null,null,null,null,null,null,null,null,0,0,0,"",null,0,0,0,""]
[null,null,null,null,null,null,null,null,null,{"$f":"ABS(B71)","v":0},{"$f":"ABS(C71/60)","v":0},{"$f":"ABS(D71/3600)","v":0},"",null,{"$f":"ABS(E71)","v":0},{"$f":"ABS(F71/60)","v":0},{"$f":"ABS(G71/3600)","v":0},""]
[null,null,null,null,null,null,null,null,null,0,0,0,"",null,0,0,0,""]
[null,null,null,null,null,null,null,null,null,0,0,0,"",null,0,0,0,""]
[null,null,null,null,null,null,null,null,null,0,0,0,"",null,0,0,0,""]
[null,null,null,null,null,null,null,null,null,0,0,0,"",null,0,0,0,""]
[null,null,null,null,null,null,null,null,null,0,0,0,"",null,0,0,0,""]
[null,null,null,null,null,null,null,null,null,0,0,0,"",null,0,0,0,""]
[null,null,null,null,null,null,null,null,null,0,0,0,"",null,0,0,0,""]
[null,null,null,null,null,null,null,null,null,0,0,0,"",null,0,0,0,""]
[null,null,null,null,null,null,null,null,null,0,0,0,"",null,0,0,0,""]
[null,null,null,null,null,null,null,null,null,0,0,0,"",null,0,0,0,""]
[null,null,null,null,null,null,null,null,null,0,0,0,"",null,0,0,0,""]
[null,null,null,null,null,null,null,null,null,0,0,0,"",null,0,0,0,""]
[null,null,null,null,null,null,null,null,null,0,0,0,"",null,0,0,0,""]
[null,null,null,null,null,null,null,null,null,0,0,0,"",null,0,0,0,""]
[null,null,null,null,null,null,null,null,null,0,0,0,"",null,0,0,0,""]
[null,null,null,null,null,null,null,null,null,0,0,0,"",null,0,0,0,""]
[null,null,null,null,null,null,null,null,null,0,0,0,"",null,0,0,0,""]
[null,null,null,null,null,null,null,null,null,0,0,0,"",null,0,0,0,""]
[null,null,null,null,null,null,null,null,null,0,0,0,"",null,0,0,0,""]
[null,null,null,null,null,null,null,null,null,0,0,0,"",null,0,0,0,""]
[null,null,null,null,null,null,null,null,null,0,0,0,"",null,0,0,0,""]
[null,null,null,null,null,null,null,null,null,0,0,0,"",null,0,0,0,""]
[null,null,null,null,null,null,null,null,null,0,0,0,"",null,0,0,0,""]
[null,null,null,null,null,null,null,null,null,0,0,0,"",null,0,0,0,""]
[null,null,null,null,null,null,null,null,null,0,0,0,"",null,0,0,0,""]
[null,null,null,null,null,null,null,null,null,0,0,0,"",null,0,0,0,""]
[null,null,null,null,null,null,null,null,null,0,0,0,"",null,0,0,0,""]
[null,null,null,null,null,null,null,null,null,0,0,0,"",null,0,0,0,""]
[null,null,null,null,null,null,null,null,null,0,0,0,"",null,0,0,0,""]
[null,null,null,null,null,null,null,null,null,0,0,0,"",null,0,0,0,""]
[null,null,null,null,null,null,null,null,null,0,0,0,"",null,0,0,0,""]
[null,null,null,null,null,null,null,null,null,0,0,0,"",null,0,0,0,""]
[null,null,null,null,null,null,null,null,null,0,0,0,"",null,0,0,0,""]
[null,null,null,null,null,null,null,null,null,0,0,0,"",null,0,0,0,""]
[null,null,null,null,null,null,null,null,null,0,0,0,"",null,0,0,0,""]
[null,null,null,null,null,null,null,null,null,0,0,0,"",null,0,0,0,""]
[null,null,null,null,null,null,null,null,null,0,0,0,"",null,0,0,0,""]
[null,null,null,null,null,null,null,null,null,0,0,0,"",null,0,0,0,""]
[null,null,null,null,null,null,null,null,null,0,0,0,"",null,0,0,0,""]
[null,null,null,null,null,null,null,null,null,0,0,0,"",null,0,0,0,""]
[null,null,null,null,null,null,null,null,null,0,0,0,"",null,0,0,0,""]
[null,null,null,null,null,null,null,null,null,0,0,0,"",null,0,0,0,""]
[null,null,null,null,null,null,null,null,null,0,0,0,"",null,0,0,0,""]
[null,null,null,null,null,null,null,null,null,0,0,0,"",null,0,0,0,""]
[null,null,null,null,null,null,null,null,null,0,0,0,"",null,0,0,0,""]
[null,null,null,null,null,null,null,null,null,0,0,0,"",null,0,0,0,""]
[null,null,null,null,null,null,null,null,null,0,0,0,"",null,0,0,0,""]
[null,null,null,null,null,null,null,null,null,0,0,0,"",null,0,0,0,""]
[null,null,null,null,null,null,null,null,null,0,0,0,"",null,0,0,0,""]
[null,null,null,null,null,null,null,null,null,0,0,0,"",null,0,0,0,""]
[null,null,null,null,null,null,null,null,null,0,0,0,"",null,0,0,0,""]
[null,null,null,null,null,null,null,null,null,0,0,0,"",null,0,0,0,""]
[null,null,null,null,null,null,null,null,null,0,0,0,"",null,0,0,0,""]
[null,null,null,null,null,null,null,null,null,0,0,0,"",null,0,0,0,""]
[null,null,null,null,null,null,null,null,null,0,0,0,"",null,0,0,0,""]
[null,null,null,null,null,null,null,null,null,0,0,0,"",null,0,0,0,""]
[null,null,null,null,null,null,null,null,null,0,0,0,"",null,0,0,0,""]
[null,null,null,null,null,null,null,null,null,0,0,0,{"$f":"IF(AND(J129=0,K129=0,L129=0),\"\",SUM(J129:L129))","v":""},null,0,0,0,{"$f":"IF(AND(O129=0,P129=0,Q129=0),\"\",SUM(O129:Q129)*-1)","v":""}]
[null,null,null,null,null,null,null,null,null,0,0,0,"",null,0,0,0,""]
[null,null,null,null,null,null,null,null,null,0,0,0,"",null,0,0,0,""]
[null,null,null,null,null,null,null,null,null,0,0,0,"",null,0,0,0,""]
[null,null,null,null,null,null,null,null,null,0,0,0,"",null,0,0,0,""]
[null,null,null,null,null,null,null,null,null,0,0,0,"",null,0,0,0,""]
[null,null,null,null,null,null,null,null,null,{"$f":"ABS(B135)","v":0},{"$f":"ABS(C135/60)","v":0},{"$f":"ABS(D135/3600)","v":0},"",null,{"$f":"ABS(E135)","v":0},{"$f":"ABS(F135/60)","v":0},{"$f":"ABS(G135/3600)","v":0},""]
[null,null,null,null,null,null,null,null,null,0,0,0,"",null,0,0,0,""]
[null,null,null,null,null,null,null,null,null,0,0,0,"",null,0,0,0,""]
[null,null,null,null,null,null,null,null,null,0,0,0,"",null,0,0,0,""]
[null,null,null,null,null,null,null,null,null,0,0,0,"",null,0,0,0,""]
[null,null,null,null,null,null,null,null,null,0,0,0,"",null,0,0,0,""]
[null,null,null,null,null,null,null,null,null,0,0,0,"",null,0,0,0,""]
[null,null,null,null,null,null,null,null,null,0,0,0,"",null,0,0,0,""]
[null,null,null,null,null,null,null,null,null,0,0,0,"",null,0,0,0,""]
[null,null,null,null,null,null,null,null,null,0,0,0,"",null,0,0,0,""]
[null,null,null,null,null,null,null,null,null,0,0,0,"",null,0,0,0,""]
[null,null,null,null,null,null,null,null,null,0,0,0,"",null,0,0,0,""]
[null,null,null,null,null,null,null,null,null,0,0,0,"",null,0,0,0,""]
[null,null,null,null,null,null,null,null,null,0,0,0,"",null,0,0,0,""]
[null,null,null,null,null,null,null,null,null,0,0,0,"",null,0,0,0,""]
[null,null,null,null,null,null,null,null,null,0,0,0,"",null,0,0,0,""]
[null,null,null,null,null,null,null,null,null,0,0,0,"",null,0,0,0,""]
[null,null,null,null,null,null,null,null,null,0,0,0,"",null,0,0,0,""]
[null,null,null,null,null,null,null,null,null,0,0,0,"",null,0,0,0,""]
[null,null,null,null,null,null,null,null,null,0,0,0,"",null,0,0,0,""]
[null,null,null,null,null,null,null,null,null,0,0,0,"",null,0,0,0,""]
[null,null,null,null,null,null,null,null,null,0,0,0,"",null,0,0,0,""]
[null,null,null,null,null,null,null,null,null,0,0,0,"",null,0,0,0,""]
[null,null,null,null,null,null,null,null,null,0,0,0,"",null,0,0,0,""]
[null,null,null,null,null,null,null,null,null,0,0,0,"",null,0,0,0,""]
[null,null,null,null,null,null,null,null,null,0,0,0,"",null,0,0,0,""]
[null,null,null,null,null,null,null,null,null,0,0,0,"",null,0,0,0,""]
[null,null,null,null,null,null,null,null,null,0,0,0,"",null,0,0,0,""]
[null,null,null,null,null,null,null,null,null,0,0,0,"",null,0,0,0,""]
[null,null,null,null,null,null,null,null,null,0,0,0,"",null,0,0,0,""]
[null,null,null,null,null,null,null,null,null,0,0,0,"",null,0,0,0,""]
[null,null,null,null,null,null,null,null,null,0,0,0,"",null,0,0,0,""]
[null,null,null,null,null,null,null,null,null,0,0,0,"",null,0,0,0,""]
[null,null,null,null,null,null,null,null,null,0,0,0,"",null,0,0,0,""]
[null,null,null,null,null,null,null,null,null,0,0,0,"",null,0,0,0,""]
[null,null,null,null,null,null,null,null,null,0,0,0,"",null,0,0,0,""]
[null,null,null,null,null,null,null,null,null,0,0,0,"",null,0,0,0,""]
[null,null,null,null,null,null,null,null,null,0,0,0,"",null,0,0,0,""]
[null,null,null,null,null,null,null,null,null,0,0,0,"",null,0,0,0,""]
[null,null,null,null,null,null,null,null,null,0,0,0,"",null,0,0,0,""]
[null,null,null,null,null,null,null,null,null,0,0,0,"",null,0,0,0,""]
[null,null,null,null,null,null,null,null,null,0,0,0,"",null,0,0,0,""]
[null,null,null,null,null,null,null,null,null,0,0,0,"",null,0,0,0,""]
[null,null,null,null,null,null,null,null,null,0,0,0,"",null,0,0,0,""]
[null,null,null,null,null,null,null,null,null,0,0,0,"",null,0,0,0,""]
[null,null,null,null,null,null,null,null,null,0,0,0,"",null,0,0,0,""]
[null,null,null,null,null,null,null,null,null,0,0,0,"",null,0,0,0,""]
[null,null,null,null,null,null,null,null,null,0,0,0,"",null,0,0,0,""]
[null,null,null,null,null,null,null,null,null,0,0,0,"",null,0,0,0,""]
[null,null,null,null,null,null,null,null,null,0,0,0,"",null,0,0,0,""]
[null,null,null,null,null,null,null,null,null,0,0,0,"",null,0,0,0,""]
[null,null,null,null,null,null,null,null,null,0,0,0,"",null,0,0,0,""]
[null,null,null,null,null,null,null,null,null,0,0,0,"",null,0,0,0,""]
[null,null,null,null,null,null,null,null,null,0,0,0,"",null,0,0,0,""]
[null,null,null,null,null,null,null,null,null,0,0,0,"",null,0,0,0,""]
[null,null,null,null,null,null,null,null,null,0,0,0,"",null,0,0,0,""]
[null,null,null,null,null,null,null,null,null,0,0,0,"",null,0,0,0,""]
[null,null,null,null,null,null,null,null,null,0,0,0,"",null,0,0,0,""]
[null,null,null,null,null,null,null,null,null,0,0,0,{"$f":"IF(AND(J193=0,K193=0,L193=0),\"\",SUM(J193:L193))","v":""},null,0,0,0,{"$f":"IF(AND(O193=0,P193=0,Q193=0),\"\",SUM(O193:Q193)*-1)","v":""}]
[null,null,null,null,null,null,null,null,null,0,0,0,"",null,0,0,0,""]
[null,null,null,null,null,null,null,null,null,0,0,0,"",null,0,0,0,""]
[null,null,null,null,null,null,null,null,null,0,0,0,"",null,0,0,0,""]
[null,null,null,null,null,null,null,null,null,0,0,0,"",null,0,0,0,""]
[null,null,null,null,null,null,null,null,null,0,0,0,"",null,0,0,0,""]
[null,null,null,null,null,null,null,null,null,{"$f":"ABS(B199)","v":0},{"$f":"ABS(C199/60)","v":0},{"$f":"ABS(D199/3600)","v":0},"",null,{"$f":"ABS(E199)","v":0},{"$f":"ABS(F199/60)","v":0},{"$f":"ABS(G199/3600)","v":0},""]
[null,null,null,null,null,null,null,null,null,0,0,0,"",null,0,0,0,""]
[null,null,null,null,null,null,null,null,null,0,0,0,"",null,0,0,0,""]
[null,null,null,null,null,null,null,null,null,0,0,0,"",null,0,0,0,""]
[null,null,null,null,null,null,null,null,null,0,0,0,"",null,0,0,0,""]
[null,null,null,null,null,null,null,null,null,0,0,0,"",null,0,0,0,""]
[null,null,null,null,null,null,null,null,null,0,0,0,"",null,0,0,0,""]
[null,null,null,null,null,null,null,null,null,0,0,0,"",null,0,0,0,""]
[null,null,null,null,null,null,null,null,null,0,0,0,"",null,0,0,0,""]
[null,null,null,null,null,null,null,null,null,0,0,0,"",null,0,0,0,""]
[null,null,null,null,null,null,null,null,null,0,0,0,"",null,0,0,0,""]
[null,null,null,null,null,null,null,null,null,0,0,0,"",null,0,0,0,""]
[null,null,null,null,null,null,null,null,null,0,0,0,"",null,0,0,0,""]
[null,null,null,null,null,null,null,null,null,0,0,0,"",null,0,0,0,""]
[null,null,null,null,null,null,null,null,null,0,0,0,"",null,0,0,0,""]
[null,null,null,null,null,null,null,null,null,0,0,0,"",null,0,0,0,""]
[null,null,null,null,null,null,null,null,null,0,0,0,"",null,0,0,0,""]
[null,null,null,null,null,null,null,null,null,0,0,0,"",null,0,0,0,""]
[null,null,null,null,null,null,null,null,null,0,0,0,"",null,0,0,0,""]
[null,null,null,null,null,null,null,null,null,0,0,0,"",null,0,0,0,""]
[null,null,null,null,null,null,null,null,null,0,0,0,"",null,0,0,0,""]
[null,null,null,null,null,null,null,null,null,0,0,0,"",null,0,0,0,""]
[null,null,null,null,null,null,null,null,null,0,0,0,"",null,0,0,0,""]
[null,null,null,null,null,null,null,null,null,0,0,0,"",null,0,0,0,""]
[null,null,null,null,null,null,null,null,null,0,0,0,"",null,0,0,0,""]
[null,null,null,null,null,null,null,null,null,0,0,0,"",null,0,0,0,""]
[null,null,null,null,null,null,null,null,null,0,0,0,"",null,0,0,0,""]
[null,null,null,null,null,null,null,null,null,0,0,0,"",null,0,0,0,""]
[null,null,null,null,null,null,null,null,null,0,0,0,"",null,0,0,0,""]
[null,null,null,null,null,null,null,null,null,0,0,0,"",null,0,0,0,""]
[null,null,null,null,null,null,null,null,null,0,0,0,"",null,0,0,0,""]
[null,null,null,null,null,null,null,null,null,0,0,0,"",null,0,0,0,""]
[null,null,null,null,null,null,null,null,null,0,0,0,"",null,0,0,0,""]
[null,null,null,null,null,null,null,null,null,0,0,0,"",null,0,0,0,""]
[null,null,null,null,null,null,null,null,null,0,0,0,"",null,0,0,0,""]
[null,null,null,null,null,null,null,null,null,0,0,0,"",null,0,0,0,""]
[null,null,null,null,null,null,null,null,null,0,0,0,"",null,0,0,0,""]
[null,null,null,null,null,null,null,null,null,0,0,0,"",null,0,0,0,""]
[null,null,null,null,null,null,null,null,null,0,0,0,"",null,0,0,0,""]
[null,null,null,null,null,null,null,null,null,0,0,0,"",null,0,0,0,""]
[null,null,null,null,null,null,null,null,null,0,0,0,"",null,0,0,0,""]
[null,null,null,null,null,null,null,null,null,0,0,0,"",null,0,0,0,""]
[null,null,null,null,null,null,null,null,null,0,0,0,"",null,0,0,0,""]
[null,null,null,null,null,null,null,null,null,0,0,0,"",null,0,0,0,""]
[null,null,null,null,null,null,null,null,null,0,0,0,"",null,0,0,0,""]
[null,null,null,null,null,null,null,null,null,0,0,0,"",null,0,0,0,""]
[null,null,null,null,null,null,null,null,null,0,0,0,"",null,0,0,0,""]
[null,null,null,null,null,null,null,null,null,0,0,0,"",null,0,0,0,""]
[null,null,null,null,null,null,null,null,null,0,0,0,"",null,0,0,0,""]
[null,null,null,null,null,null,null,null,null,0,0,0,"",null,0,0,0,""]
[null,null,null,null,null,null,null,null,null,0,0,0,"",null,0,0,0,""]
[null,null,null,null,null,null,null,null,null,0,0,0,"",null,0,0,0,""]
[null,null,null,null,null,null,null,null,null,0,0,0,"",null,0,0,0,""]
[null,null,null,null,null,null,null,null,null,0,0,0,"",null,0,0,0,""]
[null,null,null,null,null,null,null,null,null,0,0,0,"",null,0,0,0,""]
[null,null,null,null,null,null,null,null,null,0,0,0,"",null,0,0,0,""]
[null,null,null,null,null,null,null,null,null,0,0,0,"",null,0,0,0,""]
[null,null,null,null,null,null,null,null,null,0,0,0,"",null,0,0,0,""]
[null,null,null,null,null,null,null,null,null,0,0,0,{"$f":"IF(AND(J257=0,K257=0,L257=0),\"\",SUM(J257:L257))","v":""},null,0,0,0,{"$f":"IF(AND(O257=0,P257=0,Q257=0),\"\",SUM(O257:Q257)*-1)","v":""}]
[null,null,null,null,null,null,null,null,null,0,0,0,"",null,0,0,0,""]
[null,null,null,null,null,null,null,null,null,0,0,0,"",null,0,0,0,""]
[null,null,null,null,null,null,null,null,null,0,0,0,"",null,0,0,0,""]
[null,null,null,null,null,null,null,null,null,0,0,0,"",null,0,0,0,""]
[null,null,null,null,null,null,null,null,null,0,0,0,"",null,0,0,0,""]
[null,null,null,null,null,null,null,null,null,{"$f":"ABS(B263)","v":0},{"$f":"ABS(C263/60)","v":0},{"$f":"ABS(D263/3600)","v":0},"",null,{"$f":"ABS(E263)","v":0},{"$f":"ABS(F263/60)","v":0},{"$f":"ABS(G263/3600)","v":0},""]
[null,null,null,null,null,null,null,null,null,0,0,0,"",null,0,0,0,""]
[null,null,null,null,null,null,null,null,null,0,0,0,"",null,0,0,0,""]
[null,null,null,null,null,null,null,null,null,0,0,0,"",null,0,0,0,""]
[null,null,null,null,null,null,null,null,null,0,0,0,"",null,0,0,0,""]
[null,null,null,null,null,null,null,null,null,0,0,0,"",null,0,0,0,""]
[null,null,null,null,null,null,null,null,null,0,0,0,"",null,0,0,0,""]
[null,null,null,null,null,null,null,null,null,0,0,0,"",null,0,0,0,""]
[null,null,null,null,null,null,null,null,null,0,0,0,"",null,0,0,0,""]
[null,null,null,null,null,null,null,null,null,0,0,0,"",null,0,0,0,""]
[null,null,null,null,null,null,null,null,null,0,0,0,"",null,0,0,0,""]
[null,null,null,null,null,null,null,null,null,0,0,0,"",null,0,0,0,""]
[null,null,null,null,null,null,null,null,null,0,0,0,"",null,0,0,0,""]
[null,null,null,null,null,null,null,null,null,0,0,0,"",null,0,0,0,""]
[null,null,null,null,null,null,null,null,null,0,0,0,"",null,0,0,0,""]
[null,null,null,null,null,null,null,null,null,0,0,0,"",null,0,0,0,""]
[null,null,null,null,null,null,null,null,null,0,0,0,"",null,0,0,0,""]
[null,null,null,null,null,null,null,null,null,0,0,0,"",null,0,0,0,""]
[null,null,null,null,null,null,null,null,null,0,0,0,"",null,0,0,0,""]
[null,null,null,null,null,null,null,null,null,0,0,0,"",null,0,0,0,""]
[null,null,null,null,null,null,null,null,null,0,0,0,"",null,0,0,0,""]
[null,null,null,null,null,null,null,null,null,0,0,0,"",null,0,0,0,""]
[null,null,null,null,null,null,null,null,null,0,0,0,"",null,0,0,0,""]
[null,null,null,null,null,null,null,null,null,0,0,0,"",null,0,0,0,""]
[null,null,null,null,null,null,null,null,null,0,0,0,"",null,0,0,0,""]
[null,null,null,null,null,null,null,null,null,0,0,0,"",null,0,0,0,""]
[null,null,null,null,null,null,null,null,null,0,0,0,"",null,0,0,0,""]
[null,null,null,null,null,null,null,null,null,0,0,0,"",null,0,0,0,""]
[null,null,null,null,null,null,null,null,null,0,0,0,"",null,0,0,0,""]
[null,null,null,null,null,null,null,null,null,0,0,0,"",null,0,0,0,""]
[null,null,null,null,null,null,null,null,null,0,0,0,"",null,0,0,0,""]
[null,null,null,null,null,null,null,null,null,0,0,0,"",null,0,0,0,""]
[null,null,null,null,null,null,null,null,null,0,0,0,"",null,0,0,0,""]
[null,null,null,null,null,null,null,null,null,0,0,0,{"$f":"IF(AND(J296=0,K296=0,L296=0),\"\",SUM(J296:L296))","v":""},null,0,0,0]
[null,null,null,null,null,null,null,null,null,0,0,0,"",null,0,0,0]
[null,null,null,null,null,null,null,null,null,0,0,0,"",null,0,0,0]
[null,null,null,null,null,null,null,null,null,0,0,0,"",null,0,0,0]
[null,null,null,null,null,null,null,null,null,0,0,0,"",null,0,0,0]
[null,null,null,null,null,null,null,null,null,0,0,0,"",null,0,0,0]
[null,null,null,null,null,null,null,null,null,0,0,0,"",null,0,0,0]
[null,null,null,null,null,null,null,null,null,0,0,0,"",null,0,0,0]
[null,null,null,null,null,null,null,null,null,0,0,0,"",null,0,0,0]
[null,null,null,null,null,null,null,null,null,0,0,0,"",null,0,0,0]
[null,null,null,null,null,null,null,null,null,0,0,0,"",null,0,0,0]
[null,null,null,null,null,null,null,null,null,0,0,0,"",null,0,0,0]
[null,null,null,null,null,null,null,null,null,0,0,0,"",null,0,0,0]
[null,null,null,null,null,null,null,null,null,0,0,0,"",null,0,0,0]
[null,null,null,null,null,null,null,null,null,0,0,0,"",null,0,0,0]
[null,null,null,null,null,null,null,null,null,0,0,0,"",null,0,0,0]
[null,null,null,null,null,null,null,null,null,0,0,0,"",null,0,0,0]
[null,null,null,null,null,null,null,null,null,0,0,0,"",null,0,0,0]
[null,null,null,null,null,null,null,null,null,0,0,0,"",null,0,0,0]
[null,null,null,null,null,null,null,null,null,0,0,0,"",null,0,0,0]
[null,null,null,null,null,null,null,null,null,0,0,0,"",null,0,0,0]
[null,null,null,null,null,null,null,null,null,0,0,0,"",null,0,0,0]
[null,null,null,null,null,null,null,null,null,0,0,0,"",null,0,0,0]
[null,null,null,null,null,null,null,null,null,0,0,0,"",null,0,0,0]
[null,null,null,null,null,null,null,null,null,0,0,0,"",null,0,0,0]
[null,null,null,null,null,null,null,null,null,0,0,0,"",null,0,0,0]
[null,null,null,null,null,null,null,null,null,0,0,0,"",null,0,0,0]
[null,null,null,null,null,null,null,null,null,0,0,0,"",null,0,0,0]
[null,null,null,null,null,null,null,null,null,0,0,0,"",null,0,0,0]
[null,null,null,null,null,null,null,null,null,0,0,0,"",null,0,0,0]
[null,null,null,null,null,null,null,null,null,0,0,0,"",null,0,0,0]
[null,null,null,null,null,null,null,null,null,{"$f":"ABS(B327)","v":0},{"$f":"ABS(C327/60)","v":0},{"$f":"ABS(D327/3600)","v":0},"",null,{"$f":"ABS(E327)","v":0},{"$f":"ABS(F327/60)","v":0},{"$f":"ABS(G327/3600)","v":0}]
[null,null,null,null,null,null,null,null,null,0,0,0,"",null,0,0,0]
[null,null,null,null,null,null,null,null,null,0,0,0,"",null,0,0,0]
[null,null,null,null,null,null,null,null,null,0,0,0,"",null,0,0,0]
[null,null,null,null,null,null,null,null,null,0,0,0,"",null,0,0,0]
[null,null,null,null,null,null,null,null,null,0,0,0,"",null,0,0,0]
[null,null,null,null,null,null,null,null,null,0,0,0,"",null,0,0,0]
[null,null,null,null,null,null,null,null,null,0,0,0,"",null,0,0,0]
[null,null,null,null,null,null,null,null,null,0,0,0,"",null,0,0,0]
[null,null,null,null,null,null,null,null,null,0,0,0,"",null,0,0,0]
[null,null,null,null,null,null,null,null,null,0,0,0,"",null,0,0,0]
[null,null,null,null,null,null,null,null,null,0,0,0,"",null,0,0,0]
[null,null,null,null,null,null,null,null,null,0,0,0,"",null,0,0,0]
[null,null,null,null,null,null,null,null,null,0,0,0,"",null,0,0,0]
[null,null,null,null,null,null,null,null,null,0,0,0,"",null,0,0,0]
[null,null,null,null,null,null,null,null,null,0,0,0,"",null,0,0,0]
[null,null,null,null,null,null,null,null,null,0,0,0,"",null,0,0,0]
[null,null,null,null,null,null,null,null,null,0,0,0,"",null,0,0,0]
[null,null,null,null,null,null,null,null,null,0,0,0,"",null,0,0,0]
[null,null,null,null,null,null,null,null,null,0,0,0,"",null,0,0,0]
[null,null,null,null,null,null,null,null,null,0,0,0,"",null,0,0,0]
[null,null,null,null,null,null,null,null,null,0,0,0,"",null,0,0,0]
[null,null,null,null,null,null,null,null,null,0,0,0,"",null,0,0,0]
[null,null,null,null,null,null,null,null,null,0,0,0,"",null,0,0,0]
[null,null,null,null,null,null,null,null,null,0,0,0,"",null,0,0,0]
[null,null,null,null,null,null,null,null,null,0,0,0,"",null,0,0,0]
[null,null,null,null,null,null,null,null,null,0,0,0,"",null,0,0,0]
[null,null,null,null,null,null,null,null,null,0,0,0,"",null,0,0,0]
[null,null,null,null,null,null,null,null,null,0,0,0,"",null,0,0,0]
[null,null,null,null,null,null,null,null,null,0,0,0,"",null,0,0,0]
[null,null,null,null,null,null,null,null,null,0,0,0,"",null,0,0,0]
[null,null,null,null,null,null,null,null,null,0,0,0,"",null,0,0,0]
[null,null,null,null,null,null,null,null,null,0,0,0,"",null,0,0,0]
[null,null,null,null,null,null,null,null,null,0,0,0,{"$f":"IF(AND(J360=0,K360=0,L360=0),\"\",SUM(J360:L360))","v":""},null,0,0,0]
[null,null,null,null,null,null,null,null,null,0,0,0,"",null,0,0,0]
[null,null,null,null,null,null,null,null,null,0,0,0,"",null,0,0,0]
[null,null,null,null,null,null,null,null,null,0,0,0,"",null,0,0,0]
[null,null,null,null,null,null,null,null,null,0,0,0,"",null,0,0,0]
[null,null,null,null,null,null,null,null,null,0,0,0,"",null,0,0,0]
[null,null,null,null,null,null,null,null,null,0,0,0,"",null,0,0,0]
[null,null,null,null,null,null,null,null,null,0,0,0,"",null,0,0,0]
[null,null,null,null,null,null,null,null,null,0,0,0,"",null,0,0,0]
[null,null,null,null,null,null,null,null,null,0,0,0,"",null,0,0,0]
[null,null,null,null,null,null,null,null,null,0,0,0,"",null,0,0,0]
[null,null,null,null,null,null,null,null,null,0,0,0,"",null,0,0,0]
[null,null,null,null,null,null,null,null,null,0,0,0,"",null,0,0,0]
[null,null,null,null,null,null,null,null,null,0,0,0,"",null,0,0,0]
[null,null,null,null,null,null,null,null,null,0,0,0,"",null,0,0,0]
[null,null,null,null,null,null,null,null,null,0,0,0,"",null,0,0,0]
[null,null,null,null,null,null,null,null,null,0,0,0,"",null,0,0,0]
[null,null,null,null,null,null,null,null,null,0,0,0,"",null,0,0,0]
[null,null,null,null,null,null,null,null,null,0,0,0,"",null,0,0,0]
[null,null,null,null,null,null,null,null,null,0,0,0,"",null,0,0,0]
[null,null,null,null,null,null,null,null,null,0,0,0,"",null,0,0,0]
[null,null,null,null,null,null,null,null,null,0,0,0,"",null,0,0,0]
[null,null,null,null,null,null,null,null,null,0,0,0,"",null,0,0,0]
[null,null,null,null,null,null,null,null,null,0,0,0,"",null,0,0,0]
[null,null,null,null,null,null,null,null,null,0,0,0,"",null,0,0,0]
[null,null,null,null,null,null,null,null,null,0,0,0,"",null,0,0,0]
[null,null,null,null,null,null,null,null,null,0,0,0,"",null,0,0,0]
[null,null,null,null,null,null,null,null,null,0,0,0,"",null,0,0,0]
[null,null,null,null,null,null,null,null,null,0,0,0,"",null,0,0,0]
[null,null,null,null,null,null,null,null,null,0,0,0,"",null,0,0,0]
[null,null,null,null,null,null,null,null,null,0,0,0,"",null,0,0,0]
[null,null,null,null,null,null,null,null,null,{"$f":"ABS(B391)","v":0},{"$f":"ABS(C391/60)","v":0},{"$f":"ABS(D391/3600)","v":0},"",null,{"$f":"ABS(E391)","v":0},{"$f":"ABS(F391/60)","v":0},{"$f":"ABS(G391/3600)","v":0}]
[null,null,null,null,null,null,null,null,null,0,0,0,"",null,0,0,0]
[null,null,null,null,null,null,null,null,null,0,0,0,"",null,0,0,0]
[null,null,null,null,null,null,null,null,null,0,0,0,"",null,0,0,0]
[null,null,null,null,null,null,null,null,null,0,0,0,"",null,0,0,0]
[null,null,null,null,null,null,null,null,null,0,0,0,"",null,0,0,0]
[null,null,null,null,null,null,null,null,null,0,0,0,"",null,0,0,0]
[null,null,null,null,null,null,null,null,null,0,0,0,"",null,0,0,0]
[null,null,null,null,null,null,null,null,null,0,0,0,"",null,0,0,0]
[null,null,null,null,null,null,null,null,null,0,0,0,"",null,0,0,0]
[null,null,null,null,null,null,null,null,null,0,0,0,"",null,0,0,0]
[null,null,null,null,null,null,null,null,null,0,0,0,"",null,0,0,0]
[null,null,null,null,null,null,null,null,null,0,0,0,"",null,0,0,0]
[null,null,null,null,null,null,null,null,null,0,0,0,"",null,0,0,0]
[null,null,null,null,null,null,null,null,null,0,0,0,"",null,0,0,0]
[null,null,null,null,null,null,null,null,null,0,0,0,"",null,0,0,0]
[null,null,null,null,null,null,null,null,null,0,0,0,"",null,0,0,0]
[null,null,null,null,null,null,null,null,null,0,0,0,"",null,0,0,0]
[null,null,null,null,null,null,null,null,null,0,0,0,"",null,0,0,0]
[null,null,null,null,null,null,null,null,null,0,0,0,"",null,0,0,0]
[null,null,null,null,null,null,null,null,null,0,0,0,"",null,0,0,0]
[null,null,null,null,null,null,null,null,null,0,0,0,"",null,0,0,0]
[null,null,null,null,null,null,null,null,null,0,0,0,"",null,0,0,0]
[null,null,null,null,null,null,null,null,null,0,0,0,"",null,0,0,0]
[null,null,null,null,null,null,null,null,null,0,0,0,"",null,0,0,0]
[null,null,null,null,null,null,null,null,null,0,0,0,"",null,0,0,0]
[null,null,null,null,null,null,null,null,null,0,0,0,"",null,0,0,0]
[null,null,null,null,null,null,null,null,null,0,0,0,"",null,0,0,0]
[null,null,null,null,null,null,null,null,null,0,0,0,"",null,0,0,0]
[null,null,null,null,null,null,null,null,null,0,0,0,"",null,0,0,0]
[null,null,null,null,null,null,null,null,null,0,0,0,"",null,0,0,0]
[null,null,null,null,null,null,null,null,null,0,0,0,"",null,0,0,0]
[null,null,null,null,null,null,null,null,null,0,0,0,"",null,0,0,0]
[null,null,null,null,null,null,null,null,null,0,0,0,{"$f":"IF(AND(J424=0,K424=0,L424=0),\"\",SUM(J424:L424))","v":""},null,0,0,0]
[null,null,null,null,null,null,null,null,null,0,0,0,"",null,0,0,0]
[null,null,null,null,null,null,null,null,null,0,0,0,"",null,0,0,0]
[null,null,null,null,null,null,null,null,null,0,0,0,"",null,0,0,0]
[null,null,null,null,null,null,null,null,null,0,0,0,"",null,0,0,0]
[null,null,null,null,null,null,null,null,null,0,0,0,"",null,0,0,0]
[null,null,null,null,null,null,null,null,null,0,0,0,"",null,0,0,0]
[null,null,null,null,null,null,null,null,null,0,0,0,"",null,0,0,0]
[null,null,null,null,null,null,null,null,null,0,0,0,"",null,0,0,0]
[null,null,null,null,null,null,null,null,null,0,0,0,"",null,0,0,0]
[null,null,null,null,null,null,null,null,null,0,0,0,"",null,0,0,0]
[null,null,null,null,null,null,null,null,null,0,0,0,"",null,0,0,0]
[null,null,null,null,null,null,null,null,null,0,0,0,"",null,0,0,0]
[null,null,null,null,null,null,null,null,null,0,0,0,"",null,0,0,0]
[null,null,null,null,null,null,null,null,null,0,0,0,"",null,0,0,0]
[null,null,null,null,null,null,null,null,null,0,0,0,"",null,0,0,0]
[null,null,null,null,null,null,null,null,null,0,0,0,"",null,0,0,0]
[null,null,null,null,null,null,null,null,null,0,0,0,"",null,0,0,0]
[null,null,null,null,null,null,null,null,null,0,0,0,"",null,0,0,0]
[null,null,null,null,null,null,null,null,null,0,0,0,"",null,0,0,0]
[null,null,null,null,null,null,null,null,null,0,0,0,"",null,0,0,0]
[null,null,null,null,null,null,null,null,null,0,0,0,"",null,0,0,0]
[null,null,null,null,null,null,null,null,null,0,0,0,"",null,0,0,0]
[null,null,null,null,null,null,null,null,null,0,0,0,"",null,0,0,0]
[null,null,null,null,null,null,null,null,null,0,0,0,"",null,0,0,0]
[null,null,null,null,null,null,null,null,null,0,0,0,"",null,0,0,0]
[null,null,null,null,null,null,null,null,null,0,0,0,"",null,0,0,0]
[null,null,null,null,null,null,null,null,null,0,0,0,"",null,0,0,0]
[null,null,null,null,null,null,null,null,null,0,0,0,"",null,0,0,0]
[null,null,null,null,null,null,null,null,null,0,0,0,"",null,0,0,0]
[null,null,null,null,null,null,null,null,null,0,0,0,"",null,0,0,0]
[null,null,null,null,null,null,null,null,null,{"$f":"ABS(B455)","v":0},{"$f":"ABS(C455/60)","v":0},{"$f":"ABS(D455/3600)","v":0},"",null,{"$f":"ABS(E455)","v":0},{"$f":"ABS(F455/60)","v":0},{"$f":"ABS(G455/3600)","v":0}]
[null,null,null,null,null,null,null,null,null,0,0,0,"",null,0,0,0]
[null,null,null,null,null,null,null,null,null,0,0,0,"",null,0,0,0]
[null,null,null,null,null,null,null,null,null,0,0,0,"",null,0,0,0]
[null,null,null,null,null,null,null,null,null,0,0,0,"",null,0,0,0]
[null,null,null,null,null,null,null,null,null,0,0,0,"",null,0,0,0]
[null,null,null,null,null,null,null,null,null,0,0,0,"",null,0,0,0]
[null,null,null,null,null,null,null,null,null,0,0,0,"",null,0,0,0]
[null,null,null,null,null,null,null,null,null,0,0,0,"",null,0,0,0]
[null,null,null,null,null,null,null,null,null,0,0,0,"",null,0,0,0]
[null,null,null,null,null,null,null,null,null,0,0,0,"",null,0,0,0]
[null,null,null,null,null,null,null,null,null,0,0,0,"",null,0,0,0]
[null,null,null,null,null,null,null,null,null,0,0,0,"",null,0,0,0]
[null,null,null,null,null,null,null,null,null,0,0,0,"",null,0,0,0]
[null,null,null,null,null,null,null,null,null,0,0,0,"",null,0,0,0]
[null,null,null,null,null,null,null,null,null,0,0,0,"",null,0,0,0]
[null,null,null,null,null,null,null,null,null,0,0,0,"",null,0,0,0]
[null,null,null,null,null,null,null,null,null,0,0,0,"",null,0,0,0]
[null,null,null,null,null,null,null,null,null,0,0,0,"",null,0,0,0]
[null,null,null,null,null,null,null,null,null,0,0,0,"",null,0,0,0]
[null,null,null,null,null,null,null,null,null,0,0,0,"",null,0,0,0]
[null,null,null,null,null,null,null,null,null,0,0,0,"",null,0,0,0]
[null,null,null,null,null,null,null,null,null,0,0,0,"",null,0,0,0]
[null,null,null,null,null,null,null,null,null,0,0,0,"",null,0,0,0]
[null,null,null,null,null,null,null,null,null,0,0,0,"",null,0,0,0]
[null,null,null,null,null,null,null,null,null,0,0,0,"",null,0,0,0]
[null,null,null,null,null,null,null,null,null,0,0,0,"",null,0,0,0]
[null,null,null,null,null,null,null,null,null,0,0,0,"",null,0,0,0]
[null,null,null,null,null,null,null,null,null,0,0,0,"",null,0,0,0]
[null,null,null,null,null,null,null,null,null,0,0,0,"",null,0,0,0]
[null,null,null,null,null,null,null,null,null,0,0,0,"",null,0,0,0]
[null,null,null,null,null,null,null,null,null,0,0,0,"",null,0,0,0]
[null,null,null,null,null,null,null,null,null,0,0,0,"",null,0,0,0]
[null,null,null,null,null,null,null,null,null,0,0,0,{"$f":"IF(AND(J488=0,K488=0,L488=0),\"\",SUM(J488:L488))","v":""},null,{"$f":"ABS(E488)","v":0},{"$f":"ABS(F488/60)","v":0},{"$f":"ABS(G488/3600)","v":0}]
[null,null,null,null,null,null,null,null,null,0,0,0,"",null,0,0,0]
[null,null,null,null,null,null,null,null,null,0,0,0,"",null,0,0,0]
[null,null,null,null,null,null,null,null,null,0,0,0,"",null,0,0,0]
[null,null,null,null,null,null,null,null,null,0,0,0,"",null,0,0,0]
[null,null,null,null,null,null,null,null,null,0,0,0,"",null,0,0,0]
[null,null,null,null,null,null,null,null,null,0,0,0,"",null,0,0,0]
[null,null,null,null,null,null,null,null,null,0,0,0,"",null,0,0,0]
[null,null,null,null,null,null,null,null,null,0,0,0,"",null,0,0,0]
[null,null,null,null,null,null,null,null,null,0,0,0,"",null,0,0,0]
[null,null,null,null,null,null,null,null,null,0,0,0,"",null,0,0,0]
[null,null,null,null,null,null,null,null,null,0,0,0,"",null,0,0,0]
[null,null,null,null,null,null,null,null,null,0,0,0,"",null,0,0,0]